bitfinex/quotes_SOLUSD_20241029
["timestamp","ask_amount","ask_price","bid_price","bid_amount"]
[1730205319762,7.56244954,179.86,179.81,7.56244954]
[1730205319952,7.56244954,179.87,179.81,7.56244954]
[1730205320544,5.5595,179.88,179.82,7.56244954]
[1730205320733,7.56244954,179.87,179.82,7.56244954]
[1730205321139,5.5598,179.86,179.82,7.56244954]
[1730205321659,33.8943,179.93,179.85,7.56244954]
[1730205321954,7.56244954,179.9,179.85,7.56244954]
[1730205322753,5.5589,179.89,179.85,7.56244954]
[1730205323338,5.5589,179.89,179.84,5.5604]
[1730205323339,5.5589,179.89,179.86,7.56244954]
[1730205325653,5.5589,179.89,179.85,7.56244954]
[1730205326948,5.5589,179.89,179.87,7.56244954]
[1730205328140,7.56244954,179.91,179.87,7.56244954]
[1730205328351,5.5586,179.9,179.86,7.56244954]
[1730205329366,13.12064954,179.92,179.87,7.56244954]
[1730205331843,5.5577,179.93,179.89,7.56244954]
[1730205332044,5.5577,179.93,179.9,7.56244954]
[1730205333067,7.56244954,179.94,179.89,7.56244954]
[1730205333367,5.557,179.95,179.9,7.56244954]
[1730205333541,5.557,179.95,179.91,7.56244954]
[1730205334476,5.5568,179.96,179.93,7.56244954]
[1730205334778,5.5568,179.96,179.92,7.56244954]
[1730205335264,13.11924954,179.96,179.91,7.56244954]
[1730205335673,5.5568,179.96,179.91,7.56244954]
[1730205337274,5.5568,179.96,179.92,7.56244954]
[1730205337568,7.56244954,179.97,179.93,7.56244954]
[1730205337569,5.5564,179.97,179.93,7.56244954]
[1730205337967,0.96666893,180.0,179.94,7.56244954]
[1730205338183,5.5558,179.99,179.95,7.56244954]
[1730205339674,5.5558,179.99,179.94,7.56244954]
[1730205340982,5.5558,179.99,179.95,7.56244954]
[1730205341165,13.11824954,179.99,179.94,7.56244954]
[1730205344257,13.11824954,179.99,179.95,7.56244954]
[1730205345579,13.11824954,179.99,179.94,7.56244954]
[1730205346381,7.56244954,179.97,179.92,7.56244954]
[1730205346754,5.5558,179.99,179.91,7.56244954]
[1730205346755,7.56244954,179.96,179.91,7.56244954]
[1730205348459,5.557,179.95,179.91,7.56244954]
[1730205348652,5.557,179.95,179.93,7.56244954]
[1730205349667,5.5558,179.99,179.94,7.56244954]
[1730205349856,5.5558,179.99,179.95,7.56244954]
[1730205352469,13.11824954,179.99,179.94,7.56244954]
[1730205352980,5.5558,179.99,179.94,7.56244954]
[1730205353370,5.5558,179.99,179.95,7.56244954]
[1730205353574,5.5558,179.99,179.96,7.56244954]
[1730205354873,0.96661029,179.98,179.96,7.56244954]
[1730205356079,0.96661029,179.98,179.97,7.56244954]
[1730205356585,5.5553,180.01,179.97,7.56244954]
[1730205356793,5.5553,180.01,179.98,7.56244954]
[1730205357586,5.5549,180.02,179.97,7.56244954]
[1730205359588,5.5549,180.02,179.98,7.56244954]
[1730205361063,5.5549,180.02,179.99,7.56244954]
[1730205362290,8.52917369,180.04,180.01,7.56244954]
[1730205362291,6.52112415,180.04,180.01,7.56244954]
[1730205362587,6.52112415,180.04,180.02,7.56244954]
[1730205362982,0.96672415,180.04,180.02,7.56244954]
[1730205363182,0.96672415,180.04,180.03,7.56244954]
[1730205364090,5.553,180.09,180.03,13.11694954]
[1730205364393,7.56244954,180.08,180.03,7.56244954]
[1730205364792,13.11544954,180.09,180.04,7.56244954]
[1730205365902,5.5521,180.11,180.06,7.56244954]
[1730205366183,5.5521,180.11,180.07,7.56244954]
[1730205366566,13.11454954,180.11,180.05,7.56244954]
[1730205367381,7.56244954,180.1,180.04,13.8858]
[1730205367574,5.5521,180.11,180.03,7.56244954]
[1730205367575,7.56244954,180.08,180.03,7.56244954]
[1730205368687,7.56244954,180.08,180.02,19.4421]
[1730205368870,7.56244954,180.09,180.04,7.56244954]
[1730205370385,7.56244954,180.09,180.03,7.56244954]
[1730205370594,5.553,180.08,180.03,7.56244954]
[1730205372167,13.11544954,180.08,180.03,7.56244954]
[1730205373490,7.56244954,180.09,180.03,7.56244954]
[1730205373673,7.56244954,180.09,180.04,7.56244954]
[1730205374489,7.56244954,180.1,180.05,7.56244954]
[1730205374693,13.11454954,180.11,180.06,7.56244954]
[1730205374999,7.56244954,180.1,180.05,7.56244954]
[1730205375378,13.11454954,180.11,180.06,7.56244954]
[1730205375888,7.56244954,180.08,180.03,13.11674954]
[1730205376284,7.56244954,180.06,179.99,34.1065]
[1730205376481,7.56244954,180.06,180.01,7.56244954]
[1730205376792,7.56244954,180.07,180.02,7.56244954]
[1730205377470,5.5537,180.06,180.02,7.56244954]
[1730205378380,5.5537,180.06,180.03,7.56244954]
[1730205379393,7.56244954,180.08,180.03,7.56244954]
[1730205379594,5.5533,180.07,180.03,7.56244954]
[1730205380197,13.11574954,180.07,180.02,7.56244954]
[1730205380391,7.56244954,180.06,180.02,7.56244954]
[1730205381002,13.11614954,180.06,180.02,7.56244954]
[1730205381587,13.11614954,180.06,180.02,13.11734954]
[1730205382804,7.56244954,180.07,180.02,13.11734954]
[1730205383406,7.56244954,180.07,180.03,7.56244954]
[1730205384105,5.5537,180.06,180.03,7.56244954]
[1730205385405,5.5537,180.06,180.02,13.11734954]
[1730205385588,13.11514954,180.09,180.03,7.56244954]
[1730205385984,7.56244954,180.08,180.03,7.56244954]
[1730205386689,5.5533,180.07,180.03,7.56244954]
[1730205386897,13.11574954,180.07,180.02,13.11734954]
[1730205387601,14.08068499,180.07,180.02,13.11734954]
[1730205387983,13.11574954,180.07,180.02,13.11734954]
[1730205388504,5.5533,180.07,180.03,7.56244954]
[1730205391605,5.5533,180.07,180.04,7.56244954]
[1730205392191,5.5533,180.07,180.05,7.56244954]
[1730205393294,0.96482092,180.09,180.05,7.56244954]
[1730205393482,5.553,180.08,180.05,7.56244954]
[1730205393681,5.553,180.08,180.04,7.56244954]
[1730205394183,5.553,180.08,180.03,13.11694954]
[1730205394384,7.56244954,180.04,179.99,53.5514]
[1730205394596,7.56244954,180.03,179.99,38.2891]
[1730205394799,7.56244954,180.03,179.99,13.8893]
[1730205395899,7.56244954,180.03,179.97,7.56244954]
[1730205396105,7.56244954,179.99,179.96,13.8919]
[1730205397507,7.56244954,179.99,179.96,19.4486]
[1730205397695,13.11794954,180.0,179.96,19.4486]
[1730205399786,7.56244954,179.99,179.95,24.2694]
[1730205399982,7.56244954,179.99,179.94,13.11964954]
[1730205401192,13.11834954,179.99,179.94,13.11964954]
[1730205402221,13.11834954,179.99,179.93,7.56244954]
[1730205403891,7.56244954,179.98,179.94,5.5574]
[1730205404398,13.11834954,179.99,179.94,13.11984954]
[1730205404606,13.11834954,179.99,179.94,27.01334954]
[1730205406809,7.56244954,179.99,179.94,27.01334954]
[1730205408212,7.56244954,179.99,179.94,13.8935]
[1730205410420,13.8851,180.05,179.94,13.8935]
[1730205410626,7.56244954,179.99,179.94,19.4509]
[1730205411320,8.52568902,179.99,179.94,19.4509]
[1730205411515,7.56244954,179.98,179.94,19.4509]
[1730205411821,8.52568902,179.99,179.94,27.01334954]
[1730205413919,5.5558,180.0,179.95,7.56244954]
[1730205414301,13.11824954,180.0,179.95,7.56244954]
[1730205414722,6.51787562,180.03,179.98,7.56244954]
[1730205414901,13.11704954,180.03,179.98,7.56244954]
[1730205415302,13.11704954,180.03,179.97,7.56244954]
[1730205415496,7.56244954,180.02,179.97,7.56244954]
[1730205415705,7.56244954,180.01,179.96,7.56244954]
[1730205416217,7.56244954,180.01,179.97,5.5564]
[1730205416602,7.56244954,180.0,179.96,13.8912]
[1730205416798,0.96343948,180.05,179.96,13.8912]
[1730205416799,7.56244954,179.99,179.96,13.8912]
[1730205417625,7.56244954,179.99,179.91,26.0339]
[1730205417820,7.56244954,179.98,179.93,21.45644954]
[1730205418409,13.11874954,179.98,179.93,27.01414954]
[1730205419208,5.5563,179.98,179.94,7.56244954]
[1730205419409,5.5556,180.0,179.95,7.56244954]
[1730205419611,13.11804954,180.0,179.95,7.56244954]
[1730205420431,7.56244954,180.01,179.96,7.56244954]
[1730205421704,5.5555,180.0,179.96,7.56244954]
[1730205424021,7.56244954,180.02,179.96,7.56244954]
[1730205424216,39.0404,180.04,179.98,7.56244954]
[1730205424217,5.5543,180.04,179.98,7.56244954]
[1730205424524,7.56244954,180.03,179.98,7.56244954]
[1730205425437,7.56244954,180.02,179.97,13.11874954]
[1730205425603,7.56244954,180.01,179.97,5.5563]
[1730205426000,7.56244954,179.99,179.96,13.8919]
[1730205426524,7.56244954,179.99,179.94,5.5573]
[1730205427416,13.11834954,179.99,179.94,5.5573]
[1730205428617,5.5559,179.99,179.95,7.56244954]
[1730205429101,7.56244954,180.0,179.95,7.56244954]
[1730205429307,14.84893948,180.05,179.96,7.56244954]
[1730205429308,7.56244954,180.01,179.96,7.56244954]
[1730205430329,13.11784954,180.01,179.96,13.11904954]
[1730205430632,14.84893948,180.05,179.97,7.56244954]
[1730205430809,7.56244954,180.03,179.98,7.56244954]
[1730205431222,7.56244954,180.02,179.97,7.56244954]
[1730205431610,7.56244954,180.03,179.98,7.56244954]
[1730205432232,0.96343948,180.05,180.02,7.56244954]
[1730205432543,0.96343948,180.05,180.03,7.56244954]
[1730205432913,0.96343948,180.05,180.01,7.56244954]
[1730205433225,13.11614954,180.06,180.01,7.56244954]
[1730205434012,27.22941751,180.11,179.99,7.56244954]
[1730205434013,7.56244954,180.04,179.99,7.56244954]
[1730205434215,13.11704954,180.03,179.98,13.11844954]
[1730205434419,5.5546,180.03,179.98,13.11844954]
[1730205434623,5.5546,180.03,179.99,7.56244954]
[1730205435022,5.5546,180.03,179.98,5.556]
[1730205435023,5.5546,180.03,180.0,7.56244954]
[1730205435222,7.56244954,180.05,180.0,7.56244954]
[1730205435223,5.5543,180.04,180.0,7.56244954]
[1730205436233,5.5543,180.04,180.01,7.56244954]
[1730205437230,7.56244954,180.06,180.02,7.56244954]
[1730205437231,5.5537,180.06,180.02,7.56244954]
[1730205437430,4.11526869,180.05,180.02,7.56244954]
[1730205437738,4.11526869,180.04,180.02,7.56244954]
[1730205437909,5.5537,180.06,180.02,7.56244954]
[1730205438115,13.11614954,180.06,180.01,7.56244954]
[1730205438413,17.23173156,180.05,180.0,13.11764954]
[1730205438614,4.11528202,180.04,180.0,13.11764954]
[1730205438809,11.67773156,180.04,179.97,25.7608]
[1730205439014,7.56244954,180.02,179.97,38.87964954]
[1730205439410,7.56244954,180.03,179.98,7.56244954]
[1730205439809,4.11777266,180.02,179.98,7.56244954]
[1730205440010,5.5549,180.03,179.99,7.56244954]
[1730205440223,4.11942682,180.02,179.99,7.56244954]
[1730205440430,5.5549,180.03,179.99,7.56244954]
[1730205440623,4.11927369,180.02,179.99,7.56244954]
[1730205440927,5.5549,180.03,179.99,7.56244954]
[1730205442333,5.5549,180.03,179.99,13.11814954]
[1730205442544,20.0,180.05,180.0,7.56244954]
[1730205442709,4.11923269,180.04,180.0,7.56244954]
[1730205442912,4.11923269,180.03,180.0,7.56244954]
[1730205443111,20.0,180.05,180.0,7.56244954]
[1730205443311,4.11893248,180.04,180.0,7.56244954]
[1730205443523,4.11893248,180.03,180.0,7.56244954]
[1730205443729,13.11614954,180.06,180.0,7.56244954]
[1730205443925,4.11825226,180.05,180.0,7.56244954]
[1730205444135,4.11825226,180.04,180.0,7.56244954]
[1730205444440,13.11654954,180.05,180.0,13.11784954]
[1730205444734,4.11674401,180.04,180.0,13.11784954]
[1730205444931,4.11674401,180.03,180.0,13.11784954]
[1730205445113,5.5541,180.05,180.0,13.11784954]
[1730205445313,4.11681866,180.04,180.0,13.11784954]
[1730205445533,4.11681866,180.03,180.0,13.11784954]
[1730205446045,13.11654954,180.05,180.0,13.11784954]
[1730205446413,4.11670119,180.04,180.0,13.11784954]
[1730205446614,13.11654954,180.05,180.0,13.11784954]
[1730205446926,4.11667538,180.04,180.01,7.56244954]
[1730205447242,5.5541,180.05,180.01,7.56244954]
[1730205447425,4.11652267,180.04,180.01,7.56244954]
[1730205447627,5.5541,180.05,180.01,7.56244954]
[1730205447827,4.11734647,180.04,180.01,7.56244954]
[1730205448141,5.5541,180.05,180.01,7.56244954]
[1730205448343,4.11750773,180.04,180.01,7.56244954]
[1730205448536,5.5541,180.05,180.01,7.56244954]
[1730205448720,4.1173744,180.04,180.0,5.5553]
[1730205448926,5.5543,180.04,180.0,7.56244954]
[1730205450330,5.5543,180.04,180.0,13.11794954]
[1730205456639,6.51721649,180.04,180.0,13.11794954]
[1730205457020,7.56244954,180.04,179.97,25.7608]
[1730205457220,7.56244954,180.0,179.93,30.749]
[1730205457446,7.56244954,180.0,179.95,7.56244954]
[1730205458140,7.56244954,180.01,179.95,7.56244954]
[1730205458345,7.56244954,180.01,179.93,30.749]
[1730205458346,13.11764954,180.02,179.97,7.56244954]
[1730205458549,5.5552,180.02,179.98,7.56244954]
[1730205459521,13.11764954,180.02,179.97,7.56244954]
[1730205464253,4.1138261,180.01,179.97,7.56244954]
[1730205464457,13.11764954,180.02,179.97,7.56244954]
[1730205464839,4.11425025,180.01,179.97,7.56244954]
[1730205465138,13.11764954,180.02,179.97,7.56244954]
[1730205465344,4.11451564,180.01,179.97,13.11874954]
[1730205465534,13.11764954,180.02,179.97,13.11874954]
[1730205465861,4.11496059,180.01,179.97,13.11874954]
[1730205466158,13.11764954,180.02,179.97,13.11874954]
[1730205466340,9.67052574,180.01,179.97,13.11874954]
[1730205466543,5.5552,180.01,179.97,13.11874954]
[1730205469457,5.5546,180.03,179.97,13.11874954]
[1730205469667,11.67780718,180.02,179.97,13.11874954]
[1730205469959,4.11535764,180.01,179.97,13.11874954]
[1730205471067,9.67065764,180.01,179.97,13.11874954]
[1730205471533,5.5553,180.01,179.97,13.11874954]
[1730205475536,7.56244954,180.01,179.97,13.11874954]
[1730205475861,7.56244954,180.0,179.93,25.1916]
[1730205476159,11.67757182,179.99,179.94,13.11964954]
[1730205476361,7.56244954,179.99,179.94,13.11964954]
[1730205477066,13.11834954,179.99,179.94,13.11964954]
[1730205479051,7.56244954,179.98,179.93,52.20554954]
[1730205480149,13.11874954,179.98,179.93,52.20554954]
[1730205480456,0.96242092,179.97,179.93,44.6431]
[1730205480660,7.56244954,179.96,179.9,13.8963]
[1730205480883,0.96242092,179.97,179.93,7.56244954]
[1730205481039,8.52487046,179.97,179.92,7.56244954]
[1730205482047,5.5567,179.96,179.92,7.56244954]
[1730205483179,5.5567,179.96,179.91,5.5582]
[1730205483364,5.5567,179.96,179.92,7.56244954]
[1730205485912,5.5567,179.96,179.83,25.9709]
[1730205485913,7.56244954,179.93,179.83,25.9709]
[1730205486184,7.56244954,179.93,179.89,7.56244954]
[1730205486386,7.56244954,179.93,179.88,7.56244954]
[1730205486575,13.12034954,179.93,179.88,7.56244954]
[1730205487055,13.12034954,179.93,179.89,7.56244954]
[1730205487257,0.96242092,179.97,179.9,7.56244954]
[1730205487576,27.56244954,179.94,179.89,7.56244954]
[1730205488780,5.5577,179.93,179.89,7.56244954]
[1730205493684,27.56244954,179.94,179.89,13.12124954]
[1730205493685,20.0,179.94,179.89,13.12124954]
[1730205493864,27.56244954,179.95,179.9,7.56244954]
[1730205495085,5.5574,179.94,179.9,7.56244954]
[1730205495456,13.11984954,179.94,179.89,7.56244954]
[1730205495658,7.56244954,179.93,179.88,7.56244954]
[1730205496784,5.558,179.92,179.86,13.8996]
[1730205496986,5.558,179.92,179.88,7.56244954]
[1730205498766,7.56244954,179.94,179.89,7.56244954]
[1730205498982,7.56244954,179.94,179.9,7.56244954]
[1730205498983,13.11984954,179.94,179.9,7.56244954]
[1730205499371,5.5574,179.94,179.9,7.56244954]
[1730205499574,20.0,179.95,179.91,7.56244954]
[1730205499881,20.0,179.95,179.88,5.5592]
[1730205499882,20.0,179.95,179.92,7.56244954]
[1730205500076,25.5571,179.95,179.92,7.56244954]
[1730205500587,0.96285392,179.94,179.92,7.56244954]
[1730205500978,0.96285392,179.94,179.91,7.56244954]
[1730205501183,0.96285392,179.94,179.9,13.12084954]
[1730205501680,6.52025392,179.94,179.9,13.12084954]
[1730205504972,6.52025392,179.94,179.91,7.56244954]
[1730205506488,0.96285392,179.94,179.92,7.56244954]
[1730205506863,0.96285392,179.94,179.93,7.56244954]
[1730205508408,7.56245,180.02,179.93,13.12014954]
[1730205508562,0.96295602,179.98,179.96,7.56244954]
[1730205508767,5.5552,180.01,179.97,7.56244954]
[1730205508991,5.5549,180.02,179.99,7.56244954]
[1730205509170,30.0,180.0,179.99,7.56244954]
[1730205509893,5.5549,180.02,179.99,7.56244954]
[1730205510268,25.554,180.05,179.99,7.56244954]
[1730205510472,20.0,180.03,179.99,7.56244954]
[1730205510778,27.56244954,180.03,179.98,7.56244954]
[1730205510975,7.56244954,180.01,179.96,7.56244954]
[1730205511380,7.56244954,180.02,179.97,7.56244954]
[1730205511978,5.5549,180.02,179.97,7.56244954]
[1730205512294,6.51833803,180.02,179.97,7.56244954]
[1730205512692,6.51833803,180.02,179.98,7.56244954]
[1730205521002,14.08078757,180.02,179.97,7.56244954]
[1730205521497,7.56244954,179.99,179.94,25.11]
[1730205521702,7.56244954,179.99,179.94,7.56244954]
[1730205522384,7.56244954,179.99,179.92,13.8947]
[1730205522704,7.56244954,179.99,179.93,7.56244954]
[1730205522877,7.56244954,179.98,179.93,7.56244954]
[1730205523082,5.5561,179.98,179.94,7.56244954]
[1730205523971,5.5561,179.98,179.92,19.4525]
[1730205524175,13.11854954,179.98,179.9,45.699]
[1730205524377,13.11854954,179.98,179.93,7.56244954]
[1730205526107,7.56244954,179.97,179.92,7.56244954]
[1730205526288,7.56244954,179.97,179.9,26.2439]
[1730205526488,7.56244954,179.96,179.9,7.56244954]
[1730205527480,7.56244954,179.95,179.9,7.56244954]
[1730205529804,13.11964954,179.95,179.9,7.56244954]
[1730205530202,5.5572,179.95,179.9,7.56244954]
[1730205530699,13.11964954,179.95,179.9,7.56244954]
[1730205531909,7.56244954,179.96,179.9,7.56244954]
[1730205532280,7.56244954,179.96,179.91,7.56244954]
[1730205532483,0.9624701,179.95,179.91,7.56244954]
[1730205534509,7.56244954,179.96,179.91,7.56244954]
[1730205534682,5.557,179.95,179.91,7.56244954]
[1730205537086,25.5574,179.94,179.9,7.56244954]
[1730205537813,5.5574,179.94,179.91,7.56244954]
[1730205538195,25.557,179.95,179.91,7.56244954]
[1730205542322,33.11944954,179.95,179.9,7.56244954]
[1730205543200,33.11944954,179.95,179.87,19.458]
[1730205543409,33.11944954,179.95,179.9,7.56244954]
[1730205543601,25.557,179.95,179.91,7.56244954]
[1730205544405,22.41531134,179.98,179.93,7.56244954]
[1730205544615,29.66778047,179.97,179.93,7.56244954]
[1730205544907,25.5564,179.97,179.94,7.56244954]
[1730205545111,6.5186618,179.98,179.96,7.56244954]
[1730205545516,6.5186618,179.98,179.92,26.4948]
[1730205545517,6.5186618,179.98,179.94,7.56244954]
[1730205545818,5.5562,179.98,179.94,7.56244954]
[1730205546118,7.56244954,180.0,179.94,7.56244954]
[1730205546419,7.56244954,179.98,179.93,7.56244954]
[1730205547502,5.5564,179.97,179.93,7.56244954]
[1730205549925,7.56244954,179.96,179.89,19.4554]
[1730205550104,7.56244954,179.96,179.89,13.8966]
[1730205550416,7.56244954,179.96,179.9,7.56244954]
[1730205551622,7.56244954,179.96,179.91,7.56244954]
[1730205551828,27.01004954,179.97,179.92,7.56244954]
[1730205552123,20.0,179.96,179.91,7.56244954]
[1730205552725,5.557,179.95,179.91,7.56244954]
[1730205554006,5.557,179.95,179.89,5.5588]
[1730205554210,5.557,179.95,179.91,7.56244954]
[1730205557904,5.557,179.95,179.93,7.56244954]
[1730205558101,5.5567,179.97,179.94,7.56244954]
[1730205558321,5.5567,179.97,179.95,7.56244954]
[1730205559525,5.5558,179.99,179.95,7.56244954]
[1730205559737,24.11659019,179.98,179.95,7.56244954]
[1730205559929,20.0,179.98,179.94,7.56244954]
[1730205560107,4.11647687,179.97,179.94,7.56244954]
[1730205560308,20.0,179.98,179.94,7.56244954]
[1730205561129,5.5567,179.96,179.93,7.56244954]
[1730205561435,5.5567,179.96,179.92,7.56244954]
[1730205561809,20.0,179.95,179.91,7.56244954]
[1730205562934,20.0,179.95,179.88,31.1834]
[1730205562935,5.5574,179.94,179.9,7.56244954]
[1730205565540,5.5574,179.94,179.91,7.56244954]
[1730205566034,4.1236741,179.93,179.91,7.56244954]
[1730205566338,5.5579,179.93,179.91,7.56244954]
[1730205567219,5.5574,179.94,179.92,7.56244954]
[1730205569137,0.96307594,179.94,179.93,7.56244954]
[1730205570228,5.5571,179.95,179.93,7.56244954]
[1730205570523,5.5571,179.95,179.89,19.4562]
[1730205570524,5.5571,179.95,179.94,7.56244954]
[1730205570725,4.12396414,179.95,179.94,7.56244954]
[1730205570935,4.12397866,179.95,179.94,7.56244954]
[1730205571236,25.5561,179.98,179.94,7.56244954]
[1730205571443,4.12408539,179.97,179.94,7.56244954]
[1730205571619,4.12408539,179.96,179.94,7.56244954]
[1730205571820,5.5564,179.97,179.94,7.56244954]
[1730205572135,5.5564,179.97,179.93,7.56244954]
[1730205572136,5.08769275,179.96,179.93,7.56244954]
[1730205572322,4.12427793,179.95,179.93,7.56244954]
[1730205573012,9.68157793,179.95,179.92,7.56244954]
[1730205573212,5.5573,179.95,179.92,7.56244954]
[1730205573414,5.5573,179.95,179.93,7.56244954]
[1730205575240,5.5573,179.95,179.94,7.56244954]
[1730205575544,9.68205768,179.95,179.94,7.56244954]
[1730205576350,9.68205768,179.95,179.89,19.4561]
[1730205576640,5.5573,179.95,179.92,7.56244954]
[1730205582036,5.5573,179.95,179.91,7.56244954]
[1730205583126,20.0,179.94,179.91,7.56244954]
[1730205585351,25.557,179.95,179.91,7.56244954]
[1730205587036,25.557,179.95,179.93,7.56244954]
[1730205594156,25.557,179.95,179.92,7.56244954]
[1730205594343,25.557,179.95,179.93,7.56244954]
[1730205594754,26.52007286,179.95,179.93,7.56244954]
[1730205598437,6.52007286,179.95,179.94,7.56244954]
[1730205598637,10.64538613,179.95,179.94,7.56244954]
[1730205599148,9.68231327,179.95,179.94,7.56244954]
[1730205600544,4.12539137,179.95,179.94,7.56244954]
[1730205600755,5.5555,180.0,179.94,7.56244954]
[1730205600977,4.12561221,179.99,179.96,7.56244954]
[1730205601263,4.12561221,179.98,179.96,7.56244954]
[1730205601442,4.12561221,179.97,179.95,7.56244954]
[1730205601768,27.00674954,180.0,179.94,7.56244954]
[1730205601769,5.557,179.95,179.94,7.56244954]
[1730205602061,9.68261221,179.95,179.94,7.56244954]
[1730205602644,5.557,179.95,179.94,7.56244954]
[1730205602860,9.68269656,179.95,179.94,7.56244954]
[1730205604266,9.68269656,179.95,179.89,13.8969]
[1730205604452,5.557,179.95,179.93,7.56244954]
[1730205608341,5.557,179.95,179.89,19.4558]
[1730205608553,5.557,179.95,179.92,7.56244954]
[1730205613974,5.557,179.95,179.93,7.56244954]
[1730205616262,5.557,179.95,179.92,7.56244954]
[1730205616660,5.557,179.95,179.93,7.56244954]
[1730205616868,6.51942973,179.96,179.94,7.56244954]
[1730205617939,6.51942973,179.96,179.93,7.56244954]
[1730205618165,14.08187927,179.96,179.91,7.56244954]
[1730205620349,43.776884,179.95,179.85,5.5601]
[1730205620563,7.56244954,179.91,179.84,40.135]
[1730205620867,43.776884,179.95,179.84,40.135]
[1730205620868,7.56244954,179.9,179.85,7.56244954]
[1730205621646,5.5589,179.89,179.86,7.56244954]
[1730205622449,0.96302445,179.88,179.86,7.56244954]
[1730205623070,7.56244954,179.91,179.87,7.56244954]
[1730205623071,20.0,179.9,179.87,7.56244954]
[1730205623254,75.78908608,179.94,179.89,7.56244954]
[1730205623255,20.0,179.92,179.89,7.56244954]
[1730205623456,30.0,179.9,179.89,7.56244954]
[1730205623684,0.96294006,179.91,179.89,7.56244954]
[1730205623685,6.52144006,179.91,179.89,7.56244954]
[1730205625275,6.52144006,179.91,179.88,7.56244954]
[1730205627753,6.52144006,179.91,179.87,7.56244954]
[1730205629578,6.52144006,179.91,179.88,7.56244954]
[1730205631467,6.52144006,179.91,179.89,7.56244954]
[1730205631859,6.52144006,179.91,179.9,7.56244954]
[1730205632165,0.96294006,179.91,179.9,7.56244954]
[1730205632378,6.52124006,179.91,179.9,7.56244954]
[1730205634291,0.96294006,179.91,179.9,7.56244954]
[1730205634788,0.96279778,179.93,179.9,7.56244954]
[1730205634993,0.96279778,179.93,179.92,7.56244954]
[1730205635181,5.5577,179.94,179.92,7.56244954]
[1730205635498,7.56244954,179.98,179.93,7.56244954]
[1730205635796,20.0,179.96,179.93,7.56244954]
[1730205636888,20.0,179.96,179.95,7.56244954]
[1730205637092,55.5568,179.96,179.95,7.56244954]
[1730205637891,35.5568,179.96,179.95,7.56244954]
[1730205638292,5.5568,179.96,179.95,7.56244954]
[1730205639285,5.5564,179.97,179.95,7.56244954]
[1730205639485,0.96268867,179.98,179.96,7.56244954]
[1730205639686,0.96268867,179.98,179.97,7.56244954]
[1730205640174,0.96268867,179.98,179.97,31.76084954]
[1730205640703,5.5551,180.02,179.97,31.76084954]
[1730205640887,5.5551,180.02,180.01,7.56244954]
[1730205641074,5.5543,180.04,180.01,7.56244954]
[1730205641269,5.5543,180.04,180.03,7.56244954]
[1730205641473,6.51659194,180.04,180.03,7.56244954]
[1730205642087,36.51659194,180.04,180.03,7.56244954]
[1730205642780,26.51659194,180.04,180.03,7.56244954]
[1730205643593,20.0,180.03,180.01,7.56244954]
[1730205643893,25.5546,180.03,179.97,24.1984]
[1730205644080,25.5546,180.03,179.99,7.56244954]
[1730205644481,33.11704954,180.03,179.98,7.56244954]
[1730205645103,25.5546,180.03,179.99,7.56244954]
[1730205645579,25.5546,180.03,179.94,13.8933]
[1730205645898,25.5546,180.03,179.98,7.56244954]
[1730205646196,20.0,180.01,179.98,7.56244954]
[1730205646680,5.5555,180.0,179.98,7.56244954]
[1730205647193,5.5555,180.0,179.99,7.56244954]
[1730205649398,5.5555,180.0,179.92,25.4848]
[1730205649605,5.5555,180.0,179.98,7.56244954]
[1730205649902,5.5555,180.0,179.92,44.9377]
[1730205650205,5.5555,180.0,179.96,7.56244954]
[1730205652480,5.5561,179.98,179.96,7.56244954]
[1730205656985,5.5561,179.98,179.94,7.56244954]
[1730205657187,5.5561,179.98,179.93,7.56244954]
[1730205657188,20.0,179.97,179.93,7.56244954]
[1730205658210,20.0,179.97,179.92,39.3798]
[1730205658375,20.0,179.97,179.94,7.56244954]
[1730205659205,5.5567,179.96,179.94,7.56244954]
[1730205660505,5.5567,179.96,179.92,25.4848]
[1730205660690,5.5567,179.96,179.94,7.56244954]
[1730205661900,6.52356174,179.96,179.94,7.56244954]
[1730205663500,14.08601128,179.96,179.89,13.897]
[1730205663681,6.52356174,179.96,179.92,7.56244954]
[1730205664490,20.0,179.95,179.92,7.56244954]
[1730205664693,20.0,179.95,179.91,7.56244954]
[1730205664909,20.0,179.95,179.88,24.8558]
[1730205664910,20.0,179.93,179.88,7.56244954]
[1730205665295,20.0,179.93,179.89,7.56244954]
[1730205665806,5.558,179.92,179.89,7.56244954]
[1730205668706,20.0,179.91,179.88,7.56244954]
[1730205669003,20.0,179.91,179.86,13.8995]
[1730205669004,20.0,179.91,179.87,7.56244954]